Workbook

Sheet Štvrťročná správa o predaji
A2: ŠTVRŤROČNÁ SPRÁVA O PREDAJI | J2: ZOBRAZIŤ NAJPREDÁVANEJŠIE | K2: 5 | L2: PRODUKTY
J4: ZOBRAZIŤ VŠETKY OSTATNÉ | K4: NIE | L4: PRODUKTY
B34: PRODUKT | C34: PRVÝ ŠTVRŤROK | D34: DRUHÝ ŠTVRŤROK | E34: TRETÍ ŠTVRŤROK | F34: ŠTVRTÝ ŠTVRŤROK | G34: CELKOM
B35: Rámy | C35: 4000 | D35: 4500 | E35: 5000 | F35: 5000 | G35: =SUM(Predaj[[#This Row],[PRVÝ ŠTVRŤROK]:[ŠTVRTÝ ŠTVRŤROK]]) -> 18500
B36: Kotúčové brzdy, predné | C36: 294 | D36: 249.9 | E36: 323.4 | F36: 367.5 | G36: =SUM(Predaj[[#This Row],[PRVÝ ŠTVRŤROK]:[ŠTVRTÝ ŠTVRŤROK]]) -> 1234.8
B37: Strmeňové brzdy, predné | C37: 200 | D37: 170 | E37: 220 | F37: 250 | G37: =SUM(Predaj[[#This Row],[PRVÝ ŠTVRŤROK]:[ŠTVRTÝ ŠTVRŤROK]]) -> 840
B38: Kotúčové brzdy, zadné | C38: 400 | D38: 340 | E38: 440 | F38: 500 | G38: =SUM(Predaj[[#This Row],[PRVÝ ŠTVRŤROK]:[ŠTVRTÝ ŠTVRŤROK]]) -> 1680
B39: Strmeňové brzdy, zadné | C39: 294 | D39: 249.9 | E39: 323.4 | F39: 367.5 | G39: =SUM(Predaj[[#This Row],[PRVÝ ŠTVRŤROK]:[ŠTVRTÝ ŠTVRŤROK]]) -> 1234.8
B40: Sedadlá | C40: 235 | D40: 199.75 | E40: 32 | F40: 293.75 | G40: =SUM(Predaj[[#This Row],[PRVÝ ŠTVRŤROK]:[ŠTVRTÝ ŠTVRŤROK]]) -> 760.5
B41: Vidlice | C41: 100 | D41: 85 | E41: 110 | F41: 125 | G41: =SUM(Predaj[[#This Row],[PRVÝ ŠTVRŤROK]:[ŠTVRTÝ ŠTVRŤROK]]) -> 420
B42: Brzdové lanká | C42: 300 | D42: 255 | E42: 330 | F42: 375 | G42: =SUM(Predaj[[#This Row],[PRVÝ ŠTVRŤROK]:[ŠTVRTÝ ŠTVRŤROK]]) -> 1260
B43: Lanká radenia rýchlostí | C43: 250 | D43: 212.5 | E43: 275 | F43: 312.5 | G43: =SUM(Predaj[[#This Row],[PRVÝ ŠTVRŤROK]:[ŠTVRTÝ ŠTVRŤROK]]) -> 1050
B44: Zadné prevody | C44: 400 | D44: 340 | E44: 440 | F44: 500 | G44: =SUM(Predaj[[#This Row],[PRVÝ ŠTVRŤROK]:[ŠTVRTÝ ŠTVRŤROK]]) -> 1680
B45: Predné prevody | C45: 200 | D45: 170 | E45: 220 | F45: 250 | G45: =SUM(Predaj[[#This Row],[PRVÝ ŠTVRŤROK]:[ŠTVRTÝ ŠTVRŤROK]]) -> 840
B46: Riadidlá | C46: 1895 | D46: 1610.75 | E46: 3445 | F46: 3333 | G46: =SUM(Predaj[[#This Row],[PRVÝ ŠTVRŤROK]:[ŠTVRTÝ ŠTVRŤROK]]) -> 10283.75
B47: Brzdové páky | C47: 544 | D47: 462.4 | E47: 598.4 | F47: 680 | G47: =SUM(Predaj[[#This Row],[PRVÝ ŠTVRŤROK]:[ŠTVRTÝ ŠTVRŤROK]]) -> 2284.8
B48: Držiaky sedadiel | C48: 200 | D48: 170 | E48: 220 | F48: 250 | G48: =SUM(Predaj[[#This Row],[PRVÝ ŠTVRŤROK]:[ŠTVRTÝ ŠTVRŤROK]]) -> 840
B49: Svorky riadidiel | C49: 60 | D49: 51 | E49: 66 | F49: 75 | G49: =SUM(Predaj[[#This Row],[PRVÝ ŠTVRŤROK]:[ŠTVRTÝ ŠTVRŤROK]]) -> 252
B50: Tašky na sedadlá | C50: 2413 | D50: 2051.05 | E50: 4000 | F50: 3016.25 | G50: =SUM(Predaj[[#This Row],[PRVÝ ŠTVRŤROK]:[ŠTVRTÝ ŠTVRŤROK]]) -> 11480.3
B51: Špice | C51: 233 | D51: 198.05 | E51: 256.3 | F51: 291.25 | G51: =SUM(Predaj[[#This Row],[PRVÝ ŠTVRŤROK]:[ŠTVRTÝ ŠTVRŤROK]]) -> 978.6
B52: Kolesá | C52: 354 | D52: 300.9 | E52: 389.4 | F52: 442.5 | G52: =SUM(Predaj[[#This Row],[PRVÝ ŠTVRŤROK]:[ŠTVRTÝ ŠTVRŤROK]]) -> 1486.8
B53: Plášte | C53: 423 | D53: 359.55 | E53: 465.3 | F53: 528.75 | G53: =SUM(Predaj[[#This Row],[PRVÝ ŠTVRŤROK]:[ŠTVRTÝ ŠTVRŤROK]]) -> 1776.6
B54: Držadlá | C54: 2222 | D54: 1888.7 | E54: 2444.2 | F54: 2777.5 | G54: =SUM(Predaj[[#This Row],[PRVÝ ŠTVRŤROK]:[ŠTVRTÝ ŠTVRŤROK]]) -> 9332.4
B55: Páska na držadlo | C55: 1550.4 | D55: 1317.84 | E55: 1705.44 | F55: 1938 | G55: =SUM(Predaj[[#This Row],[PRVÝ ŠTVRŤROK]:[ŠTVRTÝ ŠTVRŤROK]]) -> 6511.68
B56: Chrániče | C56: 30 | D56: 25.5 | E56: 33 | F56: 37.5 | G56: =SUM(Predaj[[#This Row],[PRVÝ ŠTVRŤROK]:[ŠTVRTÝ ŠTVRŤROK]]) -> 126
B57: Reťaze | C57: 208 | D57: 176.8 | E57: 228.8 | F57: 260 | G57: =SUM(Predaj[[#This Row],[PRVÝ ŠTVRŤROK]:[ŠTVRTÝ ŠTVRŤROK]]) -> 873.6
B58: Prehadzovače | C58: 356 | D58: 302.6 | E58: 391.6 | F58: 445 | G58: =SUM(Predaj[[#This Row],[PRVÝ ŠTVRŤROK]:[ŠTVRTÝ ŠTVRŤROK]]) -> 1495.2
B59: Rýchlo vymeniteľné osky | C59: 258 | D59: 219.3 | E59: 283.8 | F59: 322.5 | G59: =SUM(Predaj[[#This Row],[PRVÝ ŠTVRŤROK]:[ŠTVRTÝ ŠTVRŤROK]]) -> 1083.6
B60: Štandardné osky | C60: 414 | D60: 351.9 | E60: 455.4 | F60: 517.5 | G60: =SUM(Predaj[[#This Row],[PRVÝ ŠTVRŤROK]:[ŠTVRTÝ ŠTVRŤROK]]) -> 1738.8
B61: Pedále | C61: 369 | D61: 313.65 | E61: 405.9 | F61: 461.25 | G61: =SUM(Predaj[[#This Row],[PRVÝ ŠTVRŤROK]:[ŠTVRTÝ ŠTVRŤROK]]) -> 1549.8
B62: Chrániče reťaze | C62: 324 | D62: 275.4 | E62: 356.4 | F62: 405 | G62: =SUM(Predaj[[#This Row],[PRVÝ ŠTVRŤROK]:[ŠTVRTÝ ŠTVRŤROK]]) -> 1360.8
B63: Zrkadlá | C63: 87 | D63: 73.95 | E63: 95.7 | F63: 108.75 | G63: =SUM(Predaj[[#This Row],[PRVÝ ŠTVRŤROK]:[ŠTVRTÝ ŠTVRŤROK]]) -> 365.4

Sheet výpočty (hidden)
A1: *** Tento hárok by mal zostať skrytý ***
E4: Produkt | F4: PRVÝ ŠTVRŤROK | G4: DRUHÝ ŠTVRŤROK | H4: TRETÍ ŠTVRŤROK | I4: ŠTVRTÝ ŠTVRŤROK | J4: Celkom
B5: 1 | C5: =IF($B5>m,"",LARGE(Predaj[CELKOM],1)) -> 18500 | D5: =IF($B5>m,"",IF(C4=C5,MATCH(C5,OFFSET(Predaj[CELKOM],D4,),0)+D4,MATCH(C5,Predaj[CELKOM],0))) -> 1 | E5: =IF($B5>m,"",INDEX(Predaj[PRODUKT],D5)) -> Rámy | F5: =IF($B5>m,"",INDEX(Predaj[PRVÝ ŠTVRŤROK],$D5)) -> 4000 | G5: =IF($B5>m,"",INDEX(Predaj[DRUHÝ ŠTVRŤROK],$D5)) -> 4500 | H5: =IF($B5>m,"",INDEX(Predaj[TRETÍ ŠTVRŤROK],$D5)) -> 5000 | I5: =IF($B5>m,"",INDEX(Predaj[ŠTVRTÝ ŠTVRŤROK],$D5)) -> 5000 | J5: =IF($B5>m,"",SUM(F5:I5)) -> 18500
B6: 2 | C6: =IF($B6>m,"",LARGE(Predaj[CELKOM],2)) -> 11480.3 | D6: =IF($B6>m,"",IF(C5=C6,MATCH(C6,OFFSET(Predaj[CELKOM],D5,),0)+D5,MATCH(C6,Predaj[CELKOM],0))) -> 16 | E6: =IF($B6>m,"",INDEX(Predaj[PRODUKT],D6)) -> Tašky na sedadlá | F6: =IF($B6>m,"",INDEX(Predaj[PRVÝ ŠTVRŤROK],$D6)) -> 2413 | G6: =IF($B6>m,"",INDEX(Predaj[DRUHÝ ŠTVRŤROK],$D6)) -> 2051.05 | H6: =IF($B6>m,"",INDEX(Predaj[TRETÍ ŠTVRŤROK],$D6)) -> 4000 | I6: =IF($B6>m,"",INDEX(Predaj[ŠTVRTÝ ŠTVRŤROK],$D6)) -> 3016.25 | J6: 11480.3
B7: 3 | C7: =IF($B7>m,"",LARGE(Predaj[CELKOM],3)) -> 10283.75 | D7: =IF($B7>m,"",IF(C6=C7,MATCH(C7,OFFSET(Predaj[CELKOM],D6,),0)+D6,MATCH(C7,Predaj[CELKOM],0))) -> 12 | E7: =IF($B7>m,"",INDEX(Predaj[PRODUKT],D7)) -> Riadidlá | F7: =IF($B7>m,"",INDEX(Predaj[PRVÝ ŠTVRŤROK],$D7)) -> 1895 | G7: =IF($B7>m,"",INDEX(Predaj[DRUHÝ ŠTVRŤROK],$D7)) -> 1610.75 | H7: =IF($B7>m,"",INDEX(Predaj[TRETÍ ŠTVRŤROK],$D7)) -> 3445 | I7: =IF($B7>m,"",INDEX(Predaj[ŠTVRTÝ ŠTVRŤROK],$D7)) -> 3333 | J7: 10283.75
B8: 4 | C8: =IF($B8>m,"",LARGE(Predaj[CELKOM],4)) -> 9332.4 | D8: =IF($B8>m,"",IF(C7=C8,MATCH(C8,OFFSET(Predaj[CELKOM],D7,),0)+D7,MATCH(C8,Predaj[CELKOM],0))) -> 20 | E8: =IF($B8>m,"",INDEX(Predaj[PRODUKT],D8)) -> Držadlá | F8: =IF($B8>m,"",INDEX(Predaj[PRVÝ ŠTVRŤROK],$D8)) -> 2222 | G8: =IF($B8>m,"",INDEX(Predaj[DRUHÝ ŠTVRŤROK],$D8)) -> 1888.7 | H8: =IF($B8>m,"",INDEX(Predaj[TRETÍ ŠTVRŤROK],$D8)) -> 2444.2 | I8: =IF($B8>m,"",INDEX(Predaj[ŠTVRTÝ ŠTVRŤROK],$D8)) -> 2777.5 | J8: 9332.4
B9: 5 | C9: =IF($B9>m,"",LARGE(Predaj[CELKOM],5)) -> 6511.68 | D9: =IF($B9>m,"",IF(C8=C9,MATCH(C9,OFFSET(Predaj[CELKOM],D8,),0)+D8,MATCH(C9,Predaj[CELKOM],0))) -> 21 | E9: =IF($B9>m,"",INDEX(Predaj[PRODUKT],D9)) -> Páska na držadlo | F9: =IF($B9>m,"",INDEX(Predaj[PRVÝ ŠTVRŤROK],$D9)) -> 1550.4 | G9: =IF($B9>m,"",INDEX(Predaj[DRUHÝ ŠTVRŤROK],$D9)) -> 1317.84 | H9: =IF($B9>m,"",INDEX(Predaj[TRETÍ ŠTVRŤROK],$D9)) -> 1705.44 | I9: =IF($B9>m,"",INDEX(Predaj[ŠTVRTÝ ŠTVRŤROK],$D9)) -> 1938 | J9: 6511.68
B10: 6 | C10: =IF($B10>m,"",LARGE(Predaj[CELKOM],6)) ->  | D10: =IF($B10>m,"",IF(C9=C10,MATCH(C10,OFFSET(Predaj[CELKOM],D9,),0)+D9,MATCH(C10,Predaj[CELKOM],0))) ->  | E10: =IF($B10>m,"",INDEX(Predaj[PRODUKT],D10)) ->  | F10: =IF($B10>m,"",INDEX(Predaj[PRVÝ ŠTVRŤROK],$D10)) ->  | G10: =IF($B10>m,"",INDEX(Predaj[DRUHÝ ŠTVRŤROK],$D10)) ->  | H10: =IF($B10>m,"",INDEX(Predaj[TRETÍ ŠTVRŤROK],$D10)) ->  | I10: =IF($B10>m,"",INDEX(Predaj[ŠTVRTÝ ŠTVRŤROK],$D10)) -> 
B11: 7 | C11: =IF($B11>m,"",LARGE(Predaj[CELKOM],7)) ->  | D11: =IF($B11>m,"",IF(C10=C11,MATCH(C11,OFFSET(Predaj[CELKOM],D10,),0)+D10,MATCH(C11,Predaj[CELKOM],0))) ->  | E11: =IF($B11>m,"",INDEX(Predaj[PRODUKT],D11)) ->  | F11: =IF($B11>m,"",INDEX(Predaj[PRVÝ ŠTVRŤROK],$D11)) ->  | G11: =IF($B11>m,"",INDEX(Predaj[DRUHÝ ŠTVRŤROK],$D11)) ->  | H11: =IF($B11>m,"",INDEX(Predaj[TRETÍ ŠTVRŤROK],$D11)) ->  | I11: =IF($B11>m,"",INDEX(Predaj[ŠTVRTÝ ŠTVRŤROK],$D11)) -> 
B12: 8 | C12: =IF($B12>m,"",LARGE(Predaj[CELKOM],8)) ->  | D12: =IF($B12>m,"",IF(C11=C12,MATCH(C12,OFFSET(Predaj[CELKOM],D11,),0)+D11,MATCH(C12,Predaj[CELKOM],0))) ->  | E12: =IF($B12>m,"",INDEX(Predaj[PRODUKT],D12)) ->  | F12: =IF($B12>m,"",INDEX(Predaj[PRVÝ ŠTVRŤROK],$D12)) ->  | G12: =IF($B12>m,"",INDEX(Predaj[DRUHÝ ŠTVRŤROK],$D12)) ->  | H12: =IF($B12>m,"",INDEX(Predaj[TRETÍ ŠTVRŤROK],$D12)) ->  | I12: =IF($B12>m,"",INDEX(Predaj[ŠTVRTÝ ŠTVRŤROK],$D12)) -> 
B13: 9 | C13: =IF($B13>m,"",LARGE(Predaj[CELKOM],9)) ->  | D13: =IF($B13>m,"",IF(C12=C13,MATCH(C13,OFFSET(Predaj[CELKOM],D12,),0)+D12,MATCH(C13,Predaj[CELKOM],0))) ->  | E13: =IF($B13>m,"",INDEX(Predaj[PRODUKT],D13)) ->  | F13: =IF($B13>m,"",INDEX(Predaj[PRVÝ ŠTVRŤROK],$D13)) ->  | G13: =IF($B13>m,"",INDEX(Predaj[DRUHÝ ŠTVRŤROK],$D13)) ->  | H13: =IF($B13>m,"",INDEX(Predaj[TRETÍ ŠTVRŤROK],$D13)) ->  | I13: =IF($B13>m,"",INDEX(Predaj[ŠTVRTÝ ŠTVRŤROK],$D13)) -> 
B14: 10 | C14: =IF($B14>m,"",LARGE(Predaj[CELKOM],10)) ->  | D14: =IF($B14>m,"",IF(C13=C14,MATCH(C14,OFFSET(Predaj[CELKOM],D13,),0)+D13,MATCH(C14,Predaj[CELKOM],0))) ->  | E14: =IF($B14>m,"",INDEX(Predaj[PRODUKT],D14)) ->  | F14: =IF($B14>m,"",INDEX(Predaj[PRVÝ ŠTVRŤROK],$D14)) ->  | G14: =IF($B14>m,"",INDEX(Predaj[DRUHÝ ŠTVRŤROK],$D14)) ->  | H14: =IF($B14>m,"",INDEX(Predaj[TRETÍ ŠTVRŤROK],$D14)) ->  | I14: =IF($B14>m,"",INDEX(Predaj[ŠTVRTÝ ŠTVRŤROK],$D14)) -> 
E15: ="" -> 
B16: =ZahrnúťOstatné="Áno" -> FALSE | E16: Ostatné | F16: =SUM(Predaj[PRVÝ ŠTVRŤROK]) - SUM(F5:F14) -> 6533 | G16: =SUM(Predaj[DRUHÝ ŠTVRŤROK]) - SUM(G5:G14) -> 5553.05 | H16: =SUM(Predaj[TRETÍ ŠTVRŤROK]) - SUM(H5:H14) -> 6959.8 | I16: =SUM(Predaj[ŠTVRTÝ ŠTVRŤROK]) - SUM(I5:I14) -> 8166.25 | J16: =SUM(Predaj[CELKOM]) - SUM(J5:J14) -> 27212.1
E18: CELKOM | F18: =SUM(Predaj[PRVÝ ŠTVRŤROK]) -> 18613.4 | G18: =SUM(Predaj[DRUHÝ ŠTVRŤROK]) -> 16921.39 | H18: =SUM(Predaj[TRETÍ ŠTVRŤROK]) -> 23554.44 | I18: =SUM(Predaj[ŠTVRTÝ ŠTVRŤROK]) -> 24231 | J18: =SUM(Predaj[CELKOM]) -> 83320.23
B22: ="CELKOM A " & m & " NAJPREDÁVANEJŠÍCH PRODUKTOV" -> CELKOM A 5 NAJPREDÁVANEJŠÍCH PRODUKTOV
